bitfinex-derivatives/quotes_ETHF0:USTF0_20250320
["timestamp","ask_amount","ask_price","bid_price","bid_amount"]
[1742495428540,2.4022,1970.7,1970.6,1.72129142]
[1742495430944,2.4022,1970.7,1970.6,0.70579142]
[1742495431738,1.0155,1970.6,1970.5,0.00760186]
[1742495431943,2.3645,1970.6,1970.5,0.71406686]
[1742495433747,2.3645,1970.6,1970.5,2.04518567]
[1742495435852,2.3645,1970.6,1970.5,0.71408567]
[1742495436861,2.3645,1970.6,1970.5,1.72975846]
[1742495437056,1.71338,1970.9,1970.6,5.07741]
[1742495437251,1.71338,1970.9,1970.8,1.0154]
[1742495437452,1.71338,1970.9,1970.8,0.7066066]
[1742495437753,1.71338,1970.9,1970.8,3.0078066]
[1742495437960,1.3152,1970.9,1970.8,3.0078066]
[1742495438161,1.3152,1970.9,1970.8,3.00787807]
[1742495438358,2.33055,1970.9,1970.8,3.00787807]
[1742495439354,2.33055,1970.9,1970.8,0.70667807]
[1742495439758,1.0155,1970.6,1970.5,4.36212186]
[1742495440060,1.0155,1970.6,1970.5,5.46309044]
[1742495440249,1.0155,1970.6,1970.5,0.71429044]
[1742495440651,2.4083,1970.6,1970.5,0.71429044]
[1742495440854,2.4083,1970.6,1970.5,1.72984044]
[1742495441048,2.4083,1970.6,1970.5,3.81734044]
[1742495441462,2.4083,1970.6,1970.5,2.80179044]
[1742495441662,2.4083,1970.6,1970.5,3.8173232]
[1742495442162,1.69888,1970.7,1970.6,1.0155]
[1742495442358,1.69888,1970.7,1970.6,3.00307134]
[1742495443461,1.69888,1970.7,1970.6,2.2964]
[1742495443655,1.69888,1970.7,1970.6,3.00304376]
[1742495444362,1.01544,1970.8,1970.7,1.01539]
[1742495444563,2.40654,1970.8,1970.7,3.00293376]
[1742495445163,2.40654,1970.8,1970.7,1.98754376]
[1742495445959,2.40654,1970.8,1970.7,0.70664376]
[1742495447058,5.61434,1970.8,1970.7,0.70664376]
[1742495447465,1.0155,1970.6,1970.5,0.00760186]
[1742495447669,1.0155,1970.6,1970.5,2.01597304]
[1742495448060,3.0578,1970.6,1970.5,0.71467304]
[1742495448861,1.4007,1970.6,1970.5,1.73022304]
[1742495449064,1.01543,1970.8,1970.7,1.01541]
[1742495449263,1.4007,1970.8,1970.7,1.72248118]
[1742495449462,1.0154,1970.8,1970.7,1.72240101]
[1742495449669,1.0154,1970.8,1970.7,2.06319101]
[1742495449967,1.0154,1970.8,1970.7,3.07864101]
[1742495450271,2.4161,1970.8,1970.7,3.07864101]
[1742495450575,1.65698,1970.9,1970.8,1.0154]
[1742495450867,2.41608,1970.9,1970.8,3.07850917]
[1742495451071,2.41608,1970.9,1970.8,2.06310917]
[1742495451258,2.41608,1970.9,1970.8,2.06311798]
[1742495451857,2.41608,1970.9,1970.8,3.07851798]
[1742495452773,2.41608,1970.9,1970.8,2.06311798]
[1742495453170,2.41608,1970.9,1970.8,1.3562]
[1742495453472,2.41608,1970.9,1970.8,2.06307487]
[1742495454166,2.41608,1970.9,1970.8,3.07847487]
[1742495454366,2.41608,1970.9,1970.8,2.06307487]
[1742495455173,2.41608,1970.9,1970.8,2.06305018]
[1742495457275,0.00760186,1971.1,1971.0,1.0153]
[1742495457570,1.02285186,1971.1,1971.0,5.06015018]
[1742495457773,1.02285186,1971.1,1971.0,6.39435018]
[1742495458574,1.02285186,1971.1,1971.0,5.6875]
[1742495458775,0.00760186,1971.1,1971.0,5.6875]
[1742495458976,1.02285186,1971.1,1971.0,5.6875]
[1742495459167,1.02285186,1971.1,1971.0,6.39393497]
[1742495459970,1.02285186,1971.1,1971.0,0.70643497]
[1742495460275,1.02285186,1971.1,1970.8,3.338]
[1742495460276,1.0154,1970.8,1970.7,3.2078]
[1742495460471,1.0154,1970.8,1970.7,3.91411743]
[1742495460676,1.0154,1970.8,1970.7,5.30661743]
[1742495461068,1.0154,1970.8,1970.7,6.32206743]
[1742495461666,2.42669,1970.9,1970.8,1.0154]
[1742495461867,2.42669,1970.9,1970.8,3.11421743]
[1742495462480,1.01534,1971.0,1970.9,1.0153]
[1742495462674,1.01534,1971.0,1970.9,4.50311743]
[1742495462882,3.11739186,1971.1,1971.0,1.0153]
[1742495463178,3.11739186,1971.1,1971.0,3.03031743]
[1742495463581,6.32519186,1971.1,1971.0,0.70631743]
[1742495463777,1.01535,1970.9,1970.8,1.3087]
[1742495463978,1.01535,1970.9,1970.8,2.01504912]
[1742495464177,1.01535,1970.9,1970.8,0.70634912]
[1742495464481,2.36565,1970.9,1970.8,0.70634912]
[1742495464985,2.36565,1970.9,1970.8,1.72174912]
[1742495465372,2.36565,1970.9,1970.8,3.03052013]
[1742495465573,1.01533,1971.0,1970.9,1.0153]
[1742495465774,2.36563,1971.0,1970.9,3.73192013]
[1742495465972,2.36563,1971.0,1970.9,2.71662013]
[1742495466177,2.36563,1971.0,1970.9,2.01512013]
[1742495466573,2.36563,1971.0,1970.9,0.70642013]
[1742495466780,1.0155,1970.6,1970.5,7.56893186]
[1742495467080,1.0155,1970.6,1970.5,0.71422661]
[1742495467282,1.0155,1970.6,1970.5,0.7142591]
[1742495467470,3.1002,1970.6,1970.5,0.7142591]
[1742495468778,6.4382,1970.6,1970.5,0.70665724]
[1742495468979,2.53923,1970.3,1969.9,0.6603]
[1742495469183,1.01581,1970.0,1969.9,1.9741]
[1742495469485,1.01581,1970.0,1969.9,1.3138]
[1742495469683,1.01571,1970.3,1969.9,5.1624]
[1742495469977,0.6552,1970.5,1970.0,2.53954]
[1742495470176,1.01563,1970.4,1970.3,1.01561]
[1742495470976,4.22333,1970.6,1970.5,1.01555]
[1742495471179,1.01555,1970.5,1970.4,3.03436]
[1742495471384,2.36985,1970.5,1970.4,1.3138]
[1742495471588,2.36985,1970.5,1970.4,2.32941]
[1742495472384,1.01553,1970.6,1970.5,1.01555]
[1742495472585,3.9875,1970.8,1970.6,1.0155]
[1742495472586,2.39427,1970.7,1970.6,1.0155]
[1742495472779,2.39427,1970.7,1970.6,1.2989]
[1742495473181,1.0155,1970.6,1970.5,3.341]
[1742495473382,2.3943,1970.6,1970.5,4.6399]
[1742495473579,1.01561,1970.4,1970.3,2.35352]
[1742495473784,1.01561,1970.4,1970.3,6.99242]
[1742495474182,2.39441,1970.4,1970.3,6.99242]
[1742495474680,1.3788,1970.4,1970.3,6.99242]
[1742495474883,6.52405,1970.8,1970.3,5.9768]
[1742495475083,1.01558,1970.5,1970.4,2.31446]
[1742495476276,2.42814,1970.6,1970.5,1.01555]
[1742495476481,2.42814,1970.6,1970.5,2.30535]
[1742495476682,1.01549,1970.7,1970.6,1.01547]
[1742495476882,2.42809,1970.7,1970.6,1.9404]
[1742495477679,2.42809,1970.7,1970.6,1.2898]
[1742495478985,1.01561,1970.4,1970.3,0.6408]
[1742495479187,1.01571,1970.2,1970.1,8.5905]
[1742495479488,1.01571,1970.2,1970.1,4.5599]
[1742495479689,2.53935,1970.2,1969.8,3.343]
[1742495479993,1.01585,1970.0,1969.8,4.6951]
[1742495480187,1.01585,1970.0,1969.9,2.36792]
[1742495480389,2.36930186,1970.1,1970.0,1.01581]
[1742495480586,2.36930186,1970.1,1970.0,3.01701]
[1742495480991,2.36930186,1970.1,1970.0,3.71700945]
[1742495481187,2.36930186,1970.1,1970.0,2.70119945]
[1742495481382,2.36930186,1970.1,1970.0,1.3521]
[1742495481588,1.01586,1969.9,1969.8,3.348]
[1742495481788,1.01586,1969.9,1969.8,5.45241055]
[1742495482193,3.01406,1969.9,1969.8,5.45241055]
[1742495482390,3.01406,1969.9,1969.8,0.69981055]
[1742495482687,1.01597,1969.7,1969.6,1.4046]
[1742495482881,1.01597,1969.7,1969.6,2.10423944]
[1742495483184,1.01602,1969.6,1969.5,3.348]
[1742495483385,1.01607,1969.5,1969.4,3.2078]
[1742495483585,2.36197,1969.5,1969.4,3.90701218]
[1742495483787,2.36197,1969.5,1969.4,3.2078]
[1742495484183,3.01427,1969.5,1969.4,3.2078]
[1742495484698,3.01427,1969.5,1969.4,4.22392]
[1742495484896,1.01617,1969.4,1969.3,1.01614]
[1742495485090,2.41267,1969.4,1969.3,3.09061164]
[1742495485291,2.41267,1969.4,1969.3,2.39194]
[1742495486898,2.41262,1969.4,1969.3,2.39194]
[1742495487295,1.3965,1969.4,1969.3,2.39194]
[1742495487491,2.41262,1969.4,1969.3,2.39194]
[1742495487692,2.41262,1969.4,1969.3,1.3758]
[1742495487991,2.41262,1969.4,1969.3,2.39197]
[1742495490802,5.89239,1970.2,1969.3,7.92512148]
[1742495491002,1.32360186,1970.1,1970.0,1.01581]
[1742495491193,2.33936186,1970.1,1970.0,1.01581]
[1742495491498,1.32360186,1970.1,1970.0,1.01581]
[1742495491700,0.00760186,1970.1,1970.0,5.55041]
[1742495492203,1.02336186,1970.1,1970.0,5.55041]
[1742495492807,1.32360186,1970.1,1970.0,5.55041]
[1742495493008,2.33936186,1970.1,1970.0,5.55041]
[1742495493399,1.01581,1970.0,1969.9,1.01584]
[1742495493599,2.98811,1970.0,1969.9,1.01584]
[1742495493999,2.98811,1970.0,1969.9,2.42754]
[1742495494700,1.2804,1970.0,1969.9,2.42754]
[1742495494899,1.2804,1970.0,1969.9,3.12545015]
[1742495495502,0.00760186,1970.1,1970.0,1.01581]
[1742495495804,0.00760186,1970.1,1970.0,3.80061]
[1742495496205,1.02336186,1970.1,1970.0,7.70671622]
[1742495496506,2.30376186,1970.1,1970.0,3.80061]
[1742495498200,2.30376186,1970.1,1970.0,1.4117]
[1742495498603,2.30376186,1970.1,1970.0,2.42751]
[1742495499001,2.30376186,1970.1,1970.0,1.4117]
[1742495499704,2.30376186,1970.1,1970.0,2.42751]
[1742495500203,2.30376186,1970.1,1970.0,1.4117]
[1742495500605,1.01586,1969.9,1969.8,6.5648]
[1742495500805,1.01586,1969.9,1969.8,3.2078]
[1742495501002,1.01597,1969.7,1969.6,0.677]
[1742495501206,1.01597,1969.7,1969.6,1.37580307]
[1742495501404,1.01597,1969.7,1969.6,2.39181581]
[1742495501713,1.01591,1969.9,1969.8,1.01587]
[1742495501905,2.37571,1969.9,1969.8,1.01587]
[1742495502809,1.01592,1969.8,1969.7,5.2877]
[1742495503012,2.38452,1969.8,1969.7,2.39607843]
[1742495503207,2.38452,1969.8,1969.7,5.60387843]
[1742495503408,2.38452,1969.8,1969.7,2.39607843]
[1742495503610,2.38452,1969.8,1969.7,5.60387843]
[1742495503804,1.0159,1969.9,1969.8,1.01592]
[1742495503998,2.3845,1969.9,1969.8,1.71482843]
[1742495504199,2.3845,1969.9,1969.8,1.71497203]
[1742495504398,2.3845,1969.9,1969.8,0.69905203]
[1742495504608,1.01592,1969.8,1969.7,1.69717]
[1742495504810,2.38452,1969.8,1969.7,2.39639042]
[1742495507314,2.38452,1969.8,1969.7,0.69922042]
[1742495507612,1.01602,1969.6,1969.5,4.37706]
[1742495507814,1.01602,1969.6,1969.5,4.06090354]
[1742495508115,2.30762,1969.6,1969.5,5.07697354]
[1742495508712,1.01602,1969.6,1969.5,5.07697354]
[1742495509112,1.01602,1969.6,1969.5,1.71597354]
[1742495509313,2.42001,1969.7,1969.6,1.01602]
[1742495509515,2.42001,1969.7,1969.6,1.71592354]
[1742495510207,2.42001,1969.7,1969.6,1.71634848]
[1742495511010,1.01601,1969.7,1969.6,1.71634848]
[1742495511210,1.01601,1969.7,1969.6,2.41244848]
[1742495511410,1.01596,1969.8,1969.7,1.01593]
[1742495511612,1.01596,1969.8,1969.7,1.71625848]
[1742495512007,1.01596,1969.8,1969.7,1.71630206]
[1742495512213,2.4199,1969.9,1969.8,1.01592]
[1742495512415,2.4199,1969.9,1969.8,1.71629206]
[1742495512913,2.4199,1969.9,1969.8,1.01592]
[1742495513120,1.01597,1969.8,1969.7,1.01592]
[1742495513315,2.41597,1969.8,1969.7,3.07376288]
[1742495514013,1.01601,1969.7,1969.6,1.01597]
[1742495514211,3.10231,1969.7,1969.6,3.07389111]
[1742495515113,2.0863,1969.7,1969.6,3.07389111]
[1742495515308,1.01595,1969.8,1969.7,1.01597]
[1742495515503,1.01595,1969.8,1969.7,3.71559111]
[1742495515703,1.4186,1969.9,1969.7,2.69962111]
[1742495516009,2.43451,1969.9,1969.8,3.07394111]
[1742495517411,1.4186,1969.9,1969.8,3.07394111]
[1742495517609,2.43446,1969.9,1969.8,3.07394111]
[1742495519409,2.43446,1969.9,1969.8,2.37352]
[1742495519719,2.43446,1969.9,1969.8,3.07472251]
[1742495519910,1.4186,1969.9,1969.8,3.07472251]
[1742495520105,0.00760186,1970.1,1970.0,1.01581]
[1742495520310,0.00760186,1970.1,1970.0,4.22361]
[1742495520513,0.00760186,1970.1,1970.0,4.92500529]
[1742495520709,0.00760186,1970.1,1970.0,4.91061]
[1742495521017,0.00760186,1970.1,1970.0,5.61195926]
[1742495521515,1.34870186,1970.1,1970.0,5.61195926]
[1742495521819,1.34870186,1970.1,1970.0,5.61191814]
[1742495522007,2.36446186,1970.1,1970.0,5.61191814]
[1742495522411,1.34870186,1970.1,1970.0,5.61191814]
[1742495522908,1.34870186,1970.1,1970.0,3.09591814]
[1742495523107,2.36446186,1970.1,1970.0,6.30371814]
[1742495524520,1.34870186,1970.1,1970.0,6.30371814]
[1742495524722,2.36446186,1970.1,1970.0,6.30371814]
[1742495525923,1.34870186,1970.1,1970.0,6.30371814]
[1742495526316,0.00760186,1970.1,1970.0,6.30371814]
[1742495526515,1.32680186,1970.1,1970.0,6.30371814]
[1742495527115,2.34256186,1970.1,1970.0,6.30371814]
[1742495527316,1.32680186,1970.1,1970.0,6.30371814]
[1742495527921,1.32680186,1970.1,1970.0,6.30364801]
[1742495528520,1.32680186,1970.1,1970.0,9.64364801]
[1742495528721,0.00760186,1970.1,1970.0,9.64364801]
[1742495528921,0.00760186,1970.1,1970.0,9.64355154]
[1742495529623,0.00760186,1970.1,1970.0,6.30355154]
[1742495529820,0.00760186,1970.1,1970.0,10.99205154]
[1742495530727,1.29450186,1970.1,1970.0,10.99179661]
[1742495531427,0.00760186,1970.1,1970.0,10.99179661]
[1742495532528,1.29450186,1970.1,1970.0,10.99179661]
[1742495532829,1.29450186,1970.1,1970.0,10.99163972]
[1742495533324,2.31026186,1970.1,1970.0,3.90852972]
[1742495533527,2.31026186,1970.1,1970.0,3.90854972]
[1742495533722,2.31026186,1970.1,1970.0,3.90855501]
[1742495534025,1.29450186,1970.1,1970.0,4.9243586]
[1742495534622,1.29450186,1970.1,1970.0,6.2513586]
[1742495534827,0.00760186,1970.1,1970.0,6.25128233]
[1742495535916,1.32420186,1970.1,1970.0,6.25128233]
[1742495536329,0.00760186,1970.1,1970.0,6.25128233]
[1742495537429,1.40420186,1970.1,1970.0,6.25128233]
[1742495537830,0.00760186,1970.1,1970.0,6.25128233]
[1742495538030,0.651,1970.4,1970.1,1.01576]
[1742495538232,1.3966,1970.3,1970.2,2.75877233]
[1742495538429,1.3966,1970.3,1970.2,6.98228233]
[1742495538627,2.41226,1970.3,1970.2,6.29917179]
[1742495539030,2.41226,1970.3,1970.2,3.09137179]
[1742495539729,1.3966,1970.3,1970.2,3.09137179]
[1742495541030,0.00760186,1970.4,1970.3,1.01566]
[1742495541234,1.42380186,1970.4,1970.3,7.76852179]
[1742495541426,1.01542,1970.8,1970.7,1.01545]
[1742495541735,1.01542,1970.8,1970.7,1.71601179]
[1742495542828,2.29762,1970.8,1970.7,1.71601179]
[1742495543525,1.2822,1970.8,1970.7,1.71601179]
[1742495543722,1.2822,1970.8,1970.7,4.92381179]
[1742495544241,1.2822,1970.8,1970.7,6.22031179]
[1742495546136,1.2822,1970.8,1970.7,10.24391179]
[1742495546335,1.2822,1970.8,1970.7,9.55931179]
[1742495547430,1.2822,1970.8,1970.7,6.22031179]
[1742495548136,1.2822,1970.8,1970.7,6.88401179]
[1742495548330,1.2822,1970.8,1970.7,6.88329598]
[1742495548837,0.00760186,1970.9,1970.8,1.0154]
[1742495549038,1.29720186,1970.9,1970.8,7.09854598]
[1742495549438,0.00760186,1970.9,1970.8,7.09854598]
[1742495549640,1.29720186,1970.9,1970.8,7.09854598]
[1742495550539,0.6711,1971.3,1971.2,1.01519]
[1742495551137,1.68626,1971.3,1971.2,1.01519]
[1742495551429,1.01522,1971.2,1971.1,1.01519]
[1742495551935,2.42812,1971.2,1971.1,1.01519]
[1742495552137,1.4129,1971.2,1971.1,1.71434314]
[1742495552338,1.4129,1971.2,1971.1,2.39329]
[1742495552536,2.42809,1971.2,1971.1,2.39329]
[1742495553338,1.4129,1971.2,1971.1,2.39329]
[1742495553545,2.42809,1971.2,1971.1,2.39329]
[1742495554243,1.0153,1971.0,1970.9,4.35433]
[1742495554442,3.08206,1971.1,1971.0,1.0153]
[1742495554642,2.0668,1971.1,1971.0,3.01578272]
[1742495554947,1.4129,1971.1,1971.0,6.89158272]
[1742495555441,0.67870186,1971.3,1971.2,1.01519]
[1742495555839,0.00760186,1971.3,1971.2,7.56099]
[1742495556048,0.00760186,1971.3,1971.2,8.25469]
[1742495556744,1.31240186,1971.3,1971.2,8.25469]
[1742495557047,0.00760186,1971.3,1971.2,8.95315902]
[1742495557640,2.7436,1971.6,1971.5,1.01504]
[1742495558342,3.75859,1971.6,1971.5,2.32884]
[1742495558549,2.7436,1971.6,1971.5,2.32884]
[1742495558943,1.4109,1971.6,1971.5,3.02679523]
[1742495559148,1.4109,1971.6,1971.5,2.32884]
[1742495559349,1.4109,1971.6,1971.5,3.02650332]
[1742495559543,1.4109,1971.6,1971.5,2.32884]
[1742495560138,1.4109,1971.6,1971.4,1.02265186]
[1742495560352,1.01504,1971.5,1971.4,1.02265186]
[1742495560552,1.67844,1971.5,1971.4,0.00760186]
[1742495561452,3.02564,1971.5,1971.4,0.00760186]
[1742495561752,3.02564,1971.5,1971.4,1.02269186]
[1742495563449,2.0106,1971.5,1971.4,2.34579186]
[1742495564156,3.02564,1971.5,1971.4,2.34579186]
[1742495564546,3.02564,1971.5,1971.4,1.02269186]
[1742495566848,3.02564,1971.5,1971.4,0.00760186]
[1742495567655,3.02564,1971.5,1971.4,1.02269186]
[1742495568054,3.02564,1971.5,1971.4,2.35029186]
[1742495568246,3.02564,1971.5,1971.4,0.00760186]
[1742495568653,3.02564,1971.5,1971.4,1.02269186]
[1742495569254,3.02564,1971.5,1971.4,2.35029186]
[1742495569448,3.02564,1971.5,1971.4,0.00760186]
[1742495569654,6.23344,1971.5,1971.4,0.00760186]
[1742495570658,1.01525,1971.1,1971.0,3.2078]
[1742495570856,1.01525,1971.1,1971.0,0.69965994]
[1742495571054,1.01525,1971.1,1971.0,1.0153]
[1742495571250,2.40295,1971.1,1971.0,1.7152172]
[1742495571957,2.40295,1971.1,1971.0,1.71520927]
[1742495572354,2.40295,1971.1,1971.0,2.38690927]
[1742495572856,1.3877,1971.1,1971.0,5.59470927]
[1742495573151,1.70192,1971.4,1971.3,1.01514]
[1742495573354,1.70189,1971.4,1971.3,1.7153526]
[1742495573546,0.6868,1971.4,1971.3,1.7153526]
[1742495573749,2.53748,1971.6,1971.5,1.01504]
[1742495573750,1.01504,1971.6,1971.5,1.01504]
[1742495574150,1.01504,1971.6,1971.5,1.71518856]
[1742495574356,1.02257186,1971.7,1971.6,1.01499]
[1742495574559,1.02257186,1971.7,1971.6,2.36999]
[1742495575060,1.02257186,1971.7,1971.6,3.07025357]
[1742495575553,1.02257186,1971.7,1971.6,1.01499]
[1742495575761,2.32887186,1971.7,1971.6,1.01499]
[1742495576458,2.32887186,1971.7,1971.6,1.71538116]
[1742495577059,2.32887186,1971.7,1971.6,3.13548116]
[1742495577264,2.32887186,1971.7,1971.6,3.13560482]
[1742495577558,2.32887186,1971.7,1971.6,4.47220482]
[1742495577767,1.31390186,1971.7,1971.6,4.47215274]
[1742495578057,2.32884186,1971.7,1971.6,4.47215274]
[1742495579761,2.32884186,1971.7,1971.6,0.70046274]
[1742495579961,1.01504,1971.5,1971.4,3.337]
[1742495580165,1.01504,1971.5,1971.4,0.70067712]
[1742495580466,2.98514,1971.5,1971.4,1.71576712]
[1742495580677,2.98514,1971.5,1971.4,3.05586712]
[1742495581166,2.98514,1971.5,1971.4,2.35519]
[1742495581461,2.98514,1971.5,1971.4,3.05593474]
[1742495582357,0.00760186,1971.7,1971.6,1.01499]
[1742495582556,0.00760186,1971.7,1971.6,4.92353474]
[1742495582752,0.00760186,1971.7,1971.6,8.26053474]
[1742495582753,2.33724186,1971.7,1971.6,8.26053474]
[1742495582958,2.33724186,1971.7,1971.6,10.29623474]
[1742495583164,2.33724186,1971.7,1971.6,10.29623282]
[1742495583366,2.33724186,1971.7,1971.6,6.07344282]
[1742495583566,2.99794186,1971.7,1971.6,6.41963282]
[1742495584264,2.99794186,1971.7,1971.6,3.08263282]
[1742495584863,2.33724186,1971.7,1971.6,3.08263282]
[1742495585166,2.33724186,1971.7,1971.6,3.08267394]
[1742495585868,2.33724186,1971.7,1971.6,1.71577394]
[1742495586064,2.33724186,1971.7,1971.6,0.70078394]
[1742495586270,2.33724186,1971.7,1971.6,1.71577394]
[1742495586567,2.33724186,1971.7,1971.6,3.02597394]
[1742495586966,2.33724186,1971.7,1971.6,3.02596686]
[1742495588267,2.33724186,1971.7,1971.6,2.01097686]
[1742495588470,1.01504,1971.6,1971.4,7.8619]
[1742495588671,2.34404,1971.6,1971.5,1.7158178]
[1742495588876,2.34404,1971.6,1971.5,2.9964178]
[1742495589076,2.34404,1971.6,1971.5,2.99640855]
[1742495589371,2.34404,1971.6,1971.5,1.98136855]
[1742495589761,2.34404,1971.6,1971.5,2.99640855]
[1742495591771,1.01504,1971.6,1971.5,2.99640855]
[1742495592173,1.3599,1971.6,1971.5,2.99640855]
[1742495592370,2.37489,1971.6,1971.5,2.99640855]
[1742495594874,2.37489,1971.6,1971.5,2.996413]
[1742495596097,1.3599,1971.6,1971.5,2.996413]
[1742495596391,2.37489,1971.6,1971.5,2.996413]
[1742495597689,1.3599,1971.6,1971.5,2.996413]
[1742495598485,0.00760186,1971.7,1971.6,1.01499]
[1742495598695,0.00760186,1971.7,1971.6,9.676163]
[1742495600195,0.45923,1971.9,1971.8,1.01488]
[1742495600397,0.45923,1971.9,1971.8,8.260453]
[1742495600791,0.45923,1971.9,1971.8,10.27276629]
[1742495601293,1.01468,1972.3,1972.2,1.01468]
[1742495601497,1.01468,1972.3,1972.2,1.71508531]
[1742495602294,8.21123186,1972.4,1972.3,1.01463]
[1742495602698,8.21123186,1972.4,1972.3,2.38153]
[1742495602998,0.65180186,1972.4,1972.3,3.08190605]
[1742495603296,0.00760186,1972.4,1972.3,3.08190605]
[1742495603595,1.35740186,1972.4,1972.3,3.08190605]
[1742495604294,2.37198186,1972.4,1972.3,3.08190605]
[1742495604503,1.35740186,1972.4,1972.1,1.02229186]
[1742495604799,1.01468,1972.2,1972.1,1.02229186]
[1742495604998,1.01468,1972.2,1972.1,1.72209235]
[1742495605299,2.34418,1972.2,1972.1,1.02229186]
[1742495605601,2.34418,1972.2,1972.1,1.02233186]
[1742495605790,2.34418,1972.2,1972.1,0.00760186]
[1742495606500,3.69198,1972.2,1972.1,0.00760186]
[1742495608596,3.69198,1972.2,1972.1,1.02233186]
[1742495608793,3.69198,1972.2,1972.1,0.00760186]
[1742495609597,1.01494,1971.7,1971.6,3.2078]
[1742495609896,1.01494,1971.7,1971.6,0.69973423]
[1742495610292,1.01494,1971.7,1971.6,1.71472423]
[1742495610504,1.01494,1971.7,1971.6,1.01499]
[1742495610801,2.43174,1971.7,1971.6,1.71478989]
[1742495612490,2.43174,1971.7,1971.6,1.71491361]
[1742495613007,1.01499,1971.6,1971.5,0.00760186]
[1742495613196,2.37689,1971.6,1971.5,0.00760186]
[1742495613803,2.37689,1971.6,1971.5,1.72257267]
[1742495614108,2.37689,1971.6,1971.5,3.80577267]
[1742495614498,1.3619,1971.6,1971.5,3.80577267]
[1742495614706,1.01498,1971.7,1971.6,1.01499]
[1742495614909,1.01498,1971.7,1971.6,3.09112081]
[1742495615596,2.39763,1971.8,1971.7,1.01494]
[1742495615906,2.39763,1971.8,1971.7,3.67717081]
[1742495616107,1.01487,1971.9,1971.8,1.01488]
[1742495616304,2.39751,1972.0,1971.9,1.01483]
[1742495616507,1.3827,1972.0,1971.9,3.03103775]
[1742495617500,2.39748,1972.0,1971.9,0.69980775]
[1742495617806,2.39748,1972.0,1971.5,2.54520186]
[1742495617807,1.01499,1971.6,1971.5,0.00760186]
[1742495618109,1.01498,1971.7,1971.6,1.01496]
[1742495618299,2.39768,1971.7,1971.6,1.71484519]
[1742495618497,2.39768,1971.7,1971.6,2.35913264]
[1742495618702,2.39768,1971.7,1971.6,2.99793264]
[1742495618904,1.01499,1971.6,1971.5,0.00760186]
[1742495619105,3.04559,1971.6,1971.5,0.70752505]
[1742495619710,3.04559,1971.6,1971.5,1.99062505]
[1742495620298,3.04559,1971.6,1971.5,0.70752505]
[1742495620500,3.04559,1971.6,1971.5,0.00760186]
[1742495623406,1.01525,1971.2,1971.0,3.9175]
[1742495623605,1.01525,1971.2,1971.1,3.08997115]
[1742495623807,1.01525,1971.2,1971.1,0.69954115]
[1742495624113,1.01525,1971.2,1971.1,1.71479115]
[1742495624309,1.01525,1971.2,1971.1,0.69954115]
[1742495624507,1.01525,1971.1,1971.0,2.0849]
[1742495624714,1.01525,1971.1,1971.0,2.79188853]
[1742495626204,1.01525,1971.1,1971.0,3.80713853]
[1742495626404,1.01525,1971.1,1971.0,3.80691866]
[1742495627608,1.01525,1971.1,1971.0,2.09250186]
[1742495627914,1.01525,1971.1,1971.0,0.00760186]
[1742495628113,1.01525,1971.1,1971.0,1.02290186]
[1742495628416,0.00760186,1971.3,1971.2,1.01519]
[1742495628706,1.02274186,1971.3,1971.2,4.92178848]
[1742495628911,1.02274186,1971.3,1971.2,5.52609]
[1742495630115,0.00760186,1971.3,1971.2,6.2246968]
[1742495630410,4.22283,1971.6,1971.5,1.01504]
[1742495630615,2.32024,1971.8,1971.7,1.01494]
[1742495630817,1.66864,1971.8,1971.7,1.01494]
[1742495631010,1.01487,1971.9,1971.8,1.01485]
[1742495631315,1.01492,1971.8,1971.7,1.0149]
[1742495635108,1.01492,1971.8,1971.7,1.7143767]
[1742495635909,1.01494,1971.7,1971.6,2.31236]
[1742495636117,1.01494,1971.7,1971.6,1.99703036]
[1742495636411,1.01494,1971.7,1971.6,1.99714093]
[1742495636605,5.87331,1971.8,1971.4,4.22285]
[1742495636806,5.87331,1971.8,1971.5,0.69978217]
[1742495636807,1.71529,1971.6,1971.5,0.69978217]
[1742495637216,1.71529,1971.6,1971.5,1.3412]
[1742495637607,1.01509,1971.4,1971.3,0.7074]
[1742495637814,1.01514,1971.3,1971.2,5.56417]
[1742495638014,1.01514,1971.3,1971.2,6.26411634]
[1742495640014,1.01514,1971.3,1971.2,6.26434055]
[1742495640214,1.01514,1971.3,1971.2,6.26434462]
[1742495640619,1.01514,1971.3,1971.2,5.24917462]
[1742495640823,1.01514,1971.3,1971.2,6.26436462]
[1742495641019,1.01514,1971.3,1971.2,5.24917462]
[1742495641419,1.01514,1971.3,1971.2,4.549]
[1742495641719,1.01514,1971.3,1971.2,6.26434207]
[1742495641926,1.01514,1971.3,1971.2,5.56419]
[1742495642216,1.01514,1971.3,1971.2,4.549]
[1742495642519,1.01514,1971.3,1971.2,5.24909485]
[1742495642818,1.01514,1971.3,1971.2,4.549]
[1742495643015,6.57379,1971.6,1971.2,5.24913729]
[1742495643216,1.71177,1971.7,1971.6,1.01499]
[1742495643612,2.98997,1971.7,1971.6,0.69970829]
[1742495643819,1.01499,1971.6,1971.5,3.0343]
[1742495644120,2.29319,1971.6,1971.5,2.38438239]
[1742495645123,1.01492,1971.8,1971.7,1.01488]
[1742495645317,2.29312,1971.8,1971.7,1.71444132]
[1742495647519,2.29312,1971.8,1971.7,0.69956132]
[1742495647721,2.29312,1971.8,1971.7,1.71450132]
[1742495648920,1.02243186,1972.0,1971.9,1.01483]
[1742495649121,0.00760186,1972.0,1971.9,1.71420672]
[1742495649329,0.00760186,1972.0,1971.9,5.69328254]
[1742495650826,1.02238186,1972.0,1971.9,5.69328254]
[1742495651026,2.31968186,1972.0,1971.9,5.69328254]
[1742495651222,2.31968186,1972.0,1971.9,5.6926299]
[1742495652020,1.30490186,1972.0,1971.9,5.6926299]
[1742495652827,2.31968186,1972.0,1971.9,5.6926299]
[1742495653224,2.31968186,1972.0,1971.9,5.69234351]
[1742495653424,2.31968186,1972.0,1971.9,4.67751351]
[1742495653733,2.31968186,1972.0,1971.9,1.01483]
[1742495654624,2.31968186,1972.0,1971.6,5.74527]
[1742495654625,1.30490186,1972.0,1971.6,6.5438]
[1742495654928,1.3265,1971.9,1971.8,1.01485]
[1742495655122,1.3265,1971.9,1971.8,1.71335171]